bitfinex-derivatives/quotes_SOLF0:USTF0_20251023
["timestamp","ask_amount","ask_price","bid_price","bid_amount"]
[1761233966516,4.7022,191.36,191.29,2.74]
[1761233967826,4.7027,191.34,191.25,7.4447]
[1761233968020,4.00936608,191.35,191.25,7.4447]
[1761233969029,4.7031,191.33,191.25,7.4447]
[1761233969623,4.00936608,191.35,191.25,2.74]
[1761233969827,4.00936608,191.35,191.21,2.72]
[1761233970129,4.7038,191.3,191.21,2.72]
[1761233970422,4.00936608,191.35,191.23,4.7051]
[1761233970628,4.00936608,191.35,191.24,2.72]
[1761233972121,4.7033,191.32,191.24,7.425]
[1761233973829,4.7033,191.32,191.25,7.4247]
[1761233974726,1.74916448,191.31,191.25,7.4247]
[1761233976029,6.45266448,191.31,191.25,7.4247]
[1761233979832,6.45216448,191.33,191.26,7.4245]
[1761233980235,4.7033,191.32,191.26,7.4245]
[1761233984939,4.7028,191.34,191.28,2.72]
[1761233985237,1.74916448,191.34,191.28,2.72]
[1761233985641,1.74916448,191.34,191.28,7.424]
[1761233985935,1.74916448,191.36,191.28,2.72]
[1761233986237,4.7025,191.35,191.31,2.72]
[1761233987540,4.7025,191.35,191.3,4.7035]
[1761233988840,4.7025,191.35,191.31,2.72]
[1761233989041,4.7025,191.35,191.3,4.7035]
[1761233989336,4.7025,191.35,191.3,7.4235]
[1761233989642,4.7028,191.34,191.28,4.704]
[1761233989941,6.45196448,191.34,191.28,4.704]
[1761233990134,6.45196448,191.34,191.27,2.72]
[1761233990731,4.7028,191.34,191.27,2.72]
[1761233990942,6.45196448,191.34,191.29,4.7038]
[1761233991241,6.45196448,191.34,191.3,2.72]
[1761233993538,1.74916448,191.34,191.31,7.37870617]
[1761233993739,4.7023,191.36,191.33,2.72]
[1761233994043,1.74916448,191.38,191.34,7.37870617]
[1761233994236,1.74916448,191.38,191.29,1.74916448]
[1761233994237,1.74916448,191.4,191.35,4.65870617]
[1761233994541,1.74916448,191.42,191.37,2.72]
[1761233994745,1.74916448,191.42,191.38,4.65870617]
[1761233995044,6.44996448,191.42,191.39,4.65870617]
[1761233995242,4.7008,191.42,191.4,4.65870617]
[1761233995545,44.54,191.47,191.41,4.64972317]
[1761233995546,1.74916448,191.43,191.41,4.64972317]
[1761233995745,1.74916448,191.43,191.37,2.72]
[1761233995944,1.74916448,191.43,191.38,4.6496982]
[1761233996146,1.74916448,191.41,191.39,4.6496982]
[1761233996444,1.74916448,191.41,191.4,4.65214348]
[1761233996945,6.45026448,191.41,191.4,4.65214348]
[1761233997441,4.7011,191.41,191.4,4.65214348]
[1761233997645,6.45026448,191.41,191.4,4.65214348]
[1761233998446,6.45026448,191.41,191.34,7.4225]
[1761233998749,6.45026448,191.41,191.35,4.65207551]
[1761233998945,6.45026448,191.41,191.36,4.65207551]
[1761233999152,6.45026448,191.41,191.37,4.65207551]
[1761233999444,1.74916448,191.39,191.38,4.65207551]
[1761234000948,1.74916448,191.39,191.31,2.66]
[1761234000949,2.78916448,191.39,191.31,2.66]
[1761234001141,1.74916448,191.33,191.27,2.66]
[1761234002450,1.74916448,191.35,191.29,2.66]
[1761234002651,1.74916448,191.39,191.3,1.74916448]
[1761234002851,2.73095005,191.41,191.31,2.66]
[1761234003155,2.73095005,191.41,191.32,2.66]
[1761234003753,47.25095005,191.43,191.32,2.66]
[1761234004045,4.7008,191.41,191.34,2.66]
[1761234004444,4.7011,191.4,191.34,7.3624]
[1761234004649,4.7011,191.4,191.35,2.66]
[1761234005852,4.87605176,191.46,191.35,2.66]
[1761234006051,4.87605176,191.46,191.4,2.73095005]
[1761234006254,4.87605176,191.46,191.41,2.66]
[1761234006550,6.50162989,191.49,191.43,2.66]
[1761234007251,9.67913685,191.51,191.43,2.66]
[1761234007454,9.67913685,191.51,191.4,2.73095005]
[1761234007656,9.67913685,191.51,191.4,2.66]
[1761234007657,4.6991,191.48,191.4,2.66]
[1761234007961,2.73095005,191.47,191.36,2.66]
[1761234009055,4.7004,191.43,191.36,2.66]
[1761234009448,4.7011,191.41,191.36,2.66]
[1761234009648,4.7011,191.41,191.35,4.79540143]
[1761234009649,2.73095005,191.41,191.31,7.45540143]
[1761234009850,2.73095005,191.41,191.31,2.66]
[1761234010048,2.73095005,191.41,191.32,2.66]
[1761234010049,7.43205005,191.41,191.32,2.66]
[1761234010249,7.43205005,191.41,191.32,7.45540143]
[1761234010444,4.7011,191.41,191.33,2.66]
[1761234010654,7.60793811,191.51,191.38,2.66]
[1761234010851,4.87698806,191.54,191.39,2.66]
[1761234011048,4.6996,191.47,191.39,2.66]
[1761234011650,4.699,191.49,191.39,2.66]
[1761234012358,4.699,191.49,191.42,2.66]
[1761234012657,4.6994,191.48,191.42,2.66]
[1761234015765,4.6988,191.5,191.42,2.66]
[1761234017155,4.6988,191.5,191.42,7.3604]
[1761234017359,4.6988,191.5,191.43,4.612924]
[1761234017658,4.6988,191.5,191.44,4.612924]
[1761234017852,4.6988,191.5,191.42,7.3604]
[1761234018053,4.6988,191.5,191.43,7.27313273]
[1761234018254,4.6988,191.5,191.44,4.61313273]
[1761234018460,4.6982,191.52,191.45,7.2709562]
[1761234018661,4.6982,191.52,191.45,2.66]
[1761234018861,44.48,191.56,191.45,2.66]
[1761234019654,166.47949655,191.59,191.45,2.66]
[1761234019964,44.48,191.58,191.46,4.60976969]
[1761234020151,44.48,191.58,191.45,2.66]
[1761234020356,4.6984,191.52,191.46,4.60993474]
[1761234020663,4.6984,191.52,191.45,2.66]
[1761234020858,4.6984,191.52,191.38,68.58599655]
[1761234020859,4.6978,191.54,191.46,4.61002778]
[1761234021061,4.6978,191.54,191.47,7.26942079]
[1761234021367,4.6978,191.54,191.47,2.66]
[1761234021958,4.6972,191.57,191.49,2.66]
[1761234022165,44.46,191.58,191.49,2.66]
[1761234022969,4.6974,191.56,191.49,2.66]
[1761234023159,44.46,191.58,191.49,2.66]
[1761234023762,157.08599655,191.59,191.49,2.66]
[1761234023963,44.46,191.58,191.49,2.66]
[1761234025068,4.6977,191.55,191.49,2.66]
[1761234025562,4.6983,191.52,191.45,7.3598]
[1761234025767,44.46,191.58,191.46,7.25492992]
[1761234025965,44.46,191.58,191.47,4.59492992]
[1761234026264,4.6978,191.54,191.48,4.59338774]
[1761234026468,4.6978,191.54,191.5,2.7]
[1761234026764,4.6978,191.54,191.41,2.7]
[1761234026972,44.46,191.58,191.43,2.7]
[1761234026973,4.6981,191.53,191.43,2.7]
[1761234027166,4.6981,191.53,191.45,2.7]
[1761234027471,4.6981,191.53,191.47,2.7]
[1761234027768,4.6981,191.53,191.48,7.2948517]
[1761234027964,4.6981,191.53,191.48,2.7]
[1761234029259,4.6976,191.55,191.49,4.59420065]
[1761234029469,4.6976,191.55,191.5,2.81]
[1761234029866,6.58599655,191.57,191.38,2.81]
[1761234030062,6.58599655,191.57,191.4,2.81]
[1761234030259,6.58599655,191.57,191.41,7.40759657]
[1761234030465,6.58599655,191.57,191.42,4.59759657]
[1761234030671,6.58599655,191.57,191.43,4.59759657]
[1761234030973,6.58599655,191.57,191.44,4.59943499]
[1761234031267,4.6991,191.49,191.43,2.81]
[1761234031571,4.6991,191.49,191.45,2.81]
[1761234032375,4.6991,191.49,191.46,4.60190689]
[1761234032570,4.6991,191.49,191.45,2.81]
[1761234035475,4.6991,191.49,191.46,7.41767922]
[1761234035677,4.6991,191.49,191.46,2.81]
[1761234036071,4.6991,191.49,191.44,4.7]
[1761234036272,4.6991,191.49,191.45,7.41556016]
[1761234036577,4.6993,191.48,191.42,4.7006]
[1761234036870,4.6993,191.48,191.43,4.60870513]
[1761234037075,4.6993,191.48,191.44,4.60870513]
[1761234037280,4.6993,191.48,191.45,4.60870513]
[1761234037477,4.6993,191.48,191.42,4.7006]
[1761234037673,4.6993,191.48,191.43,4.61143528]
[1761234037876,2.72784632,191.49,191.44,4.61143528]
[1761234038177,2.72784632,191.49,191.46,2.81]
[1761234038475,2.72784632,191.49,191.43,7.5103]
[1761234038679,2.72784632,191.49,191.44,4.61394641]
[1761234038973,2.72784632,191.49,191.45,4.61394641]
[1761234039180,2.72784632,191.49,191.46,7.42394641]
[1761234039379,2.72784632,191.49,191.46,2.81]
[1761234040077,2.72784632,191.49,191.44,2.81]
[1761234040272,2.72784632,191.49,191.45,4.61637763]
[1761234040474,2.72784632,191.49,191.46,7.42637763]
[1761234040777,44.44,191.52,191.47,4.61662522]
[1761234040778,47.16784632,191.52,191.47,4.61662522]
[1761234040975,47.16784632,191.52,191.48,4.61662522]
[1761234041175,47.16784632,191.52,191.45,4.6998]
[1761234041376,47.16784632,191.52,191.46,4.61665587]
[1761234041680,47.16784632,191.52,191.47,4.61665587]
[1761234041881,47.16784632,191.52,191.45,4.6998]
[1761234042077,47.16784632,191.52,191.46,4.61742262]
[1761234042279,47.16784632,191.52,191.47,4.61742262]
[1761234042484,47.16784632,191.52,191.46,4.6995]
[1761234042675,47.16784632,191.52,191.47,4.61877996]
[1761234042875,47.16784632,191.52,191.48,4.61877996]
[1761234043180,47.16784632,191.52,191.46,4.6995]
[1761234043380,47.16784632,191.52,191.47,4.61694554]
[1761234043578,47.16784632,191.52,191.48,4.61694554]
[1761234043781,47.16784632,191.52,191.47,4.6993]
[1761234043979,47.16784632,191.52,191.48,4.61841232]
[1761234044179,47.16784632,191.52,191.47,4.6993]
[1761234044376,47.16784632,191.52,191.48,4.61872503]
[1761234044575,47.16784632,191.52,191.47,4.6993]
[1761234044776,47.16784632,191.52,191.48,4.61984835]
[1761234044977,47.16784632,191.52,191.47,7.5093]
[1761234045180,47.16784632,191.52,191.48,4.61984542]
[1761234045381,47.16784632,191.52,191.47,7.5093]
[1761234045582,47.16784632,191.52,191.48,4.62016203]
[1761234045779,47.16784632,191.52,191.47,7.5093]
[1761234045979,47.16784632,191.52,191.48,4.62016276]
[1761234046183,47.16784632,191.52,191.47,7.5093]
[1761234046184,47.16784632,191.52,191.49,4.62426024]
[1761234046383,47.16784632,191.52,191.47,7.5093]
[1761234046585,47.16784632,191.52,191.48,4.62581577]
[1761234046784,2.72784632,191.54,191.5,2.81]
[1761234046985,2.72784632,191.54,191.51,4.62581577]
[1761234047186,2.72784632,191.54,191.52,4.62581577]
[1761234047381,2.72784632,191.54,191.5,2.81]
[1761234047582,35.28,191.55,191.42,6.39386857]
[1761234047583,35.28,191.55,191.51,7.43903744]
[1761234047789,35.28,191.55,191.52,4.62903744]
[1761234048090,35.28,191.55,191.53,4.62903744]
[1761234048287,35.28,191.55,191.54,4.62903744]
[1761234053284,7.42464632,191.58,191.54,7.43903744]
[1761234053488,7.42464632,191.58,191.55,4.62903744]
[1761234053685,7.42464632,191.58,191.56,4.62903744]
[1761234053886,7.42464632,191.58,191.48,4.79540143]
[1761234053887,4.6968,191.58,191.49,2.81]
[1761234054100,4.6968,191.58,191.51,2.81]
[1761234054295,4.6968,191.58,191.52,4.63323036]
[1761234054497,4.6968,191.58,191.53,7.44323036]
[1761234054795,4.6968,191.58,191.54,4.63323036]
[1761234054997,4.6968,191.58,191.55,4.63323036]
[1761234055197,4.6968,191.58,191.56,4.63323036]
[1761234055499,4.6968,191.58,191.53,2.81]
[1761234055700,4.6968,191.58,191.54,4.63210589]
[1761234056002,4.6968,191.58,191.55,4.63210589]
[1761234056192,4.6968,191.58,191.56,4.63210589]
[1761234056494,4.6968,191.58,191.53,2.81]
[1761234056696,4.6968,191.58,191.54,7.44167113]
[1761234056895,4.6968,191.58,191.55,4.63167113]
[1761234057096,4.6968,191.58,191.54,2.81]
[1761234057097,4.6968,191.58,191.56,4.63167113]
[1761234057290,4.6968,191.58,191.57,4.63057619]
[1761234057496,4.6968,191.58,191.54,2.81]
[1761234057690,4.6968,191.58,191.55,4.63131537]
[1761234057893,44.4,191.6,191.56,4.63131537]
[1761234058192,44.4,191.6,191.54,2.81]
[1761234058490,4.696,191.62,191.55,12.13809849]
[1761234058694,4.696,191.62,191.56,4.63069849]
[1761234058991,4.696,191.62,191.57,4.63069849]
[1761234059195,4.696,191.62,191.58,4.63069849]
[1761234059502,4.696,191.62,191.59,4.63069849]
[1761234059797,4.696,191.62,191.6,4.63069849]
[1761234059998,4.696,191.62,191.55,7.5074]
[1761234060195,4.696,191.62,191.56,4.62769646]
[1761234060405,4.696,191.62,191.57,4.62769646]
[1761234060604,4.696,191.62,191.58,4.62769646]
[1761234060808,4.696,191.62,191.59,4.62769646]
[1761234060997,4.6961,191.61,191.55,2.81]
[1761234061195,2.72784632,191.6,191.56,4.62939252]
[1761234061398,2.72784632,191.6,191.57,4.62939252]
[1761234061598,7.42434632,191.6,191.58,4.62939252]
[1761234061800,44.4,191.63,191.59,4.62648879]
[1761234062108,44.4,191.63,191.6,7.47505648]
[1761234062302,44.4,191.63,191.61,4.62505648]
[1761234062605,49.0956,191.63,191.57,7.5469]
[1761234062908,44.4,191.63,191.59,2.85]
[1761234063104,44.4,191.63,191.6,4.62281114]
[1761234063105,2.72784632,191.62,191.6,4.62281114]
[1761234063398,2.72784632,191.61,191.48,4.79540143]
[1761234063604,2.72784632,191.56,191.49,4.62482898]
[1761234063899,44.38,191.56,191.5,4.62482898]
[1761234064099,2.72784632,191.55,191.52,2.85]
[1761234064301,44.38,191.56,191.54,2.85]
[1761234064497,44.38,191.56,191.46,99.60062864]
[1761234064498,44.38,191.56,191.55,4.62482898]
[1761234064803,46.12514161,191.56,191.5,2.85]
[1761234064999,1.74514161,191.52,191.51,7.47267472]
[1761234067901,1.74514161,191.56,191.52,2.85]
[1761234068098,1.74514161,191.56,191.54,2.85]
[1761234068403,1.74514161,191.56,191.55,4.62267472]
[1761234069707,27.68,191.6,191.55,4.62267472]
[1761234069908,1.74514161,191.56,191.54,2.85]
[1761234070106,27.68,191.6,191.56,2.85]
[1761234070407,29.42514161,191.6,191.57,4.61861609]
[1761234070606,29.42514161,191.6,191.56,2.85]
[1761234070816,29.42514161,191.6,191.57,4.61620696]
[1761234071107,29.42514161,191.6,191.56,2.85]
[1761234071309,27.68,191.6,191.58,2.85]
[1761234072103,27.68,191.6,191.54,7.5476]
[1761234072300,29.42514161,191.6,191.56,2.85]
[1761234072600,29.42514161,191.6,191.57,4.61413967]
[1761234072803,29.42514161,191.6,191.58,4.61413967]
[1761234073004,29.42514161,191.6,191.54,7.5476]
[1761234073205,29.42514161,191.6,191.55,4.61357485]
[1761234073510,29.42514161,191.6,191.56,7.46357485]
[1761234073709,29.42514161,191.6,191.57,4.61357485]
[1761234074007,29.42514161,191.6,191.58,4.61357485]
[1761234074207,27.68,191.6,191.56,2.85]
[1761234074403,1.74514161,191.59,191.57,4.61653116]
[1761234074620,1.74514161,191.59,191.56,2.85]
[1761234074807,1.74514161,191.59,191.57,4.61719104]
[1761234075108,1.74514161,191.59,191.56,2.85]
[1761234075307,1.74514161,191.59,191.57,4.61710487]
[1761234075510,1.74514161,191.59,191.56,2.85]
[1761234075709,1.74514161,191.59,191.57,4.61710484]
[1761234075904,1.74514161,191.59,191.56,2.85]
[1761234076103,1.74514161,191.59,191.57,4.61761668]
[1761234076298,1.74514161,191.59,191.58,4.61854038]
[1761234077202,1.74514161,191.59,191.58,7.46854038]
[1761234077407,6.44074161,191.63,191.59,2.85]
[1761234077609,6.44074161,191.63,191.6,4.61854038]
[1761234077807,6.44074161,191.63,191.61,4.61854038]
[1761234078005,6.44074161,191.63,191.59,2.85]
[1761234078208,1.74514161,191.61,191.6,4.6167602]
[1761234078510,6.44074161,191.63,191.6,7.4667602]
[1761234078700,1.74514161,191.63,191.61,7.4667602]
[1761234078906,1.74514161,191.63,191.61,2.85]
[1761234079105,1.74514161,191.63,191.55,2.85]
[1761234079408,1.74514161,191.63,191.56,12.16323244]
[1761234079610,1.74514161,191.61,191.57,7.46603244]
[1761234079811,1.74514161,191.69,191.61,2.85]
[1761234080003,44.34,191.75,191.63,2.85]
[1761234080211,4.6937,191.71,191.65,2.85]
[1761234080508,1.74514161,191.71,191.67,2.85]
[1761234080706,1.74514161,191.69,191.63,2.85]
[1761234080901,1.74514161,191.69,191.65,2.85]
[1761234081107,1.74514161,191.69,191.66,4.60818199]
[1761234081309,1.74514161,191.67,191.65,2.85]
[1761234082609,1.74514161,191.67,191.66,7.45252914]
[1761234082918,4.6939,191.7,191.66,7.4527628]
[1761234083112,1.74514161,191.68,191.59,2.85]
[1761234083318,44.34,191.75,191.6,7.45178605]
[1761234083319,1.74514161,191.66,191.6,7.45178605]
[1761234083515,1.74514161,191.62,191.61,4.60178605]
[1761234083719,1.74514161,191.62,191.57,2.85]
[1761234084013,1.74514161,191.62,191.59,2.85]
[1761234084219,6.44084161,191.63,191.61,2.85]
[1761234084419,6.44024161,191.65,191.61,2.85]
[1761234084716,1.74514161,191.65,191.63,2.85]
[1761234084912,1.74514161,191.65,191.59,2.85]
[1761234085107,4.87698806,191.74,191.61,2.85]
[1761234085312,1.74514161,191.68,191.63,2.85]
[1761234085512,1.74514161,191.68,191.65,2.85]
[1761234088121,175.22952754,191.79,191.67,2.83]
[1761234088122,9.3834,191.79,191.67,2.83]
[1761234088306,1.74514161,191.74,191.68,4.59270089]
[1761234088511,1.74514161,191.74,191.69,4.59270089]
[1761234088717,4.6932,191.73,191.67,2.83]
[1761234088911,1.74514161,191.74,191.68,4.59388015]
[1761234089115,1.74514161,191.74,191.7,2.72]
[1761234089319,6.43814161,191.74,191.7,2.72]
[1761234089716,1.74514161,191.74,191.7,2.72]
[1761234089915,4.6932,191.73,191.7,2.72]
[1761234090315,1.74514161,191.76,191.7,2.72]
[1761234091122,4.6927,191.75,191.7,2.72]
[1761234091915,45.49283688,191.84,191.7,2.72]
[1761234091916,20.52372938,191.84,191.7,2.72]
[1761234092219,6.50265075,191.87,191.6,66.7352075]
[1761234092220,1.74514161,191.81,191.73,2.72]
[1761234092420,1.74514161,191.81,191.75,2.72]
[1761234093618,4.691,191.82,191.75,2.72]
[1761234093818,4.691,191.82,191.76,4.57909173]
[1761234094018,4.691,191.82,191.75,2.72]
[1761234094418,1.74514161,191.83,191.76,4.46514161]
[1761234094727,1.74514161,191.83,191.77,2.72]
[1761234095025,1.74514161,191.85,191.77,2.72]
[1761234095722,6.43544161,191.85,191.78,2.72]
[1761234095920,4.6903,191.85,191.78,1.74514161]
[1761234096125,4.6903,191.85,191.79,2.72]
[1761234098020,4.6903,191.85,191.68,23.18]
[1761234098021,1.74514161,191.89,191.81,2.72]
[1761234098228,44.3,191.91,191.81,2.72]
[1761234098422,1.74514161,191.88,191.81,2.72]
[1761234100032,4.6898,191.87,191.81,2.72]
[1761234100625,1.74514161,191.9,191.83,2.72]
[1761234100826,1.74514161,191.88,191.83,2.72]
[1761234101222,6.43474161,191.88,191.83,2.72]
[1761234102624,1.74514161,191.86,191.8,7.4111]
[1761234103222,1.74514161,191.84,191.8,2.72]
[1761234103528,1.74514161,191.85,191.8,2.72]
[1761234104220,4.69,191.86,191.8,2.72]
[1761234104420,1.74514161,191.84,191.8,2.72]
[1761234104720,1.74514161,191.82,191.75,2.72]
[1761234105728,6.43564161,191.84,191.77,2.72]
[1761234106717,4.6905,191.84,191.78,1.74514161]
[1761234106915,1.74514161,191.85,191.79,2.72]
[1761234107219,4.6899,191.86,191.79,2.72]
[1761234108021,4.6899,191.86,191.79,2.31044903]
[1761234108327,6.43544161,191.85,191.79,2.31044903]
[1761234108724,1.74514161,191.85,191.79,2.31044903]
[1761234109326,6.43534161,191.85,191.79,2.31044903]
[1761234109524,1.74514161,191.85,191.79,2.31044903]
[1761234109923,44.28,191.92,191.79,2.31044903]
[1761234110127,1.74514161,191.87,191.8,4.46514161]
[1761234110331,1.74514161,191.87,191.81,2.72]
[1761234110527,4.69,191.86,191.81,2.72]
[1761234110929,1.74514161,191.89,191.81,2.72]
[1761234111128,6.43434161,191.89,191.81,2.72]
[1761234111930,6.43434161,191.89,191.81,7.4109]
[1761234112229,6.43434161,191.89,191.82,2.72]
[1761234112925,1.74514161,191.89,191.82,2.72]
[1761234113128,9.3725,192.01,191.85,2.72]
[1761234113129,15.68,192.0,191.85,2.72]
[1761234113329,1.74514161,191.95,191.87,2.72]
[1761234113533,1.74514161,191.95,191.87,7.4094]
[1761234113734,1.74514161,191.93,191.87,7.4094]
[1761234114034,1.74514161,191.93,191.87,2.72]
[1761234114831,1.74514161,191.92,191.87,2.72]
[1761234115036,1.74514161,191.93,191.87,2.72]
[1761234115236,38.5525,192.01,191.87,2.72]
[1761234115439,1.74514161,191.94,191.87,2.72]
[1761234116333,1.74514161,191.94,191.88,2.72]
[1761234116736,4.6881,191.93,191.88,2.72]
[1761234116936,1.74514161,191.92,191.85,7.4099]
[1761234117137,54.2325,192.01,191.86,2.72]
[1761234117339,4.6885,191.92,191.86,2.72]
[1761234117645,1.74514161,191.93,191.86,2.72]
[1761234118639,6.43334161,191.93,191.87,2.65]
[1761234118940,1.74514161,191.93,191.87,2.65]
[1761234119142,1.74514161,191.93,191.87,4.6894]
[1761234119347,1.74514161,191.93,191.88,2.65]
[1761234119847,4.6883,191.92,191.88,2.65]
[1761234120638,6.43384161,191.91,191.84,2.65]
[1761234120840,1.74514161,191.9,191.84,2.65]
[1761234121343,4.6886,191.91,191.85,2.65]
[1761234121649,1.74514161,191.94,191.87,2.65]
[1761234122141,4.6882,191.93,191.87,2.65]
[1761234122546,6.43334161,191.93,191.87,2.65]
[1761234123447,4.6885,191.92,191.87,2.65]
[1761234123649,1.74514161,191.89,191.77,2.65]
[1761234123945,1.74514161,191.89,191.8,1.74514161]
[1761234124249,1.74514161,191.91,191.83,2.65]
[1761234124945,4.689,191.9,191.84,1.74514161]
[1761234125146,4.689,191.9,191.85,2.65]
[1761234125546,1.74514161,191.92,191.85,2.65]
[1761234126160,1.74514161,191.94,191.86,1.74514161]
[1761234126358,1.74514161,191.94,191.87,2.65]
[1761234126757,2.71534615,191.96,191.87,2.65]
[1761234127260,2.71534615,191.92,191.8,2.65]
[1761234127560,33.02,191.98,191.8,2.65]
[1761234127561,2.71534615,191.93,191.81,2.65]
[1761234127859,2.71534615,191.9,191.78,2.65]
[1761234128153,2.71534615,191.87,191.78,2.65]
[1761234128360,4.6902,191.85,191.79,2.65]
[1761234128553,2.71534615,191.87,191.79,2.65]
[1761234129659,4.6904,191.84,191.79,2.65]
[1761234129961,7.40574615,191.84,191.79,2.65]
[1761234131968,2.71534615,191.87,191.79,2.65]
[1761234132461,4.6891,191.89,191.83,2.65]
[1761234133555,4.6895,191.88,191.83,2.65]
[1761234133756,2.71534615,191.88,191.79,2.65]
[1761234134458,2.71534615,191.89,191.79,2.65]
[1761234134664,2.71534615,191.9,191.79,2.65]
[1761234135349,4.6894,191.88,191.83,2.65]
[1761234136460,4.6894,191.88,191.77,2.71534615]
[1761234136461,4.6889,191.9,191.85,2.65]
[1761234136660,44.2,191.96,191.79,4.7352075]
[1761234136661,2.71534615,191.88,191.79,2.65]
[1761234136858,4.6906,191.83,191.79,2.65]
[1761234137054,4.6906,191.83,191.77,4.6919]
[1761234137255,2.71534615,191.85,191.75,7.3852075]
[1761234137256,2.71534615,191.85,191.75,2.65]
[1761234137456,4.6909,191.82,191.75,7.3425]
[1761234137967,4.6909,191.82,191.75,2.65]
[1761234138967,4.6909,191.82,191.78,2.65]
[1761234139765,4.6904,191.84,191.78,2.65]
[1761234140067,4.6904,191.84,191.78,7.3416]
[1761234140260,2.71534615,191.88,191.78,7.3416]
[1761234141169,4.6904,191.84,191.78,7.3416]
[1761234143162,2.71534615,191.85,191.78,7.3416]
[1761234143163,4.6907,191.83,191.78,7.3416]
[1761234143367,4.6907,191.83,191.78,2.65]
[1761234143571,4.6907,191.83,191.76,4.6922]
[1761234143768,4.6907,191.83,191.76,7.3422]
[1761234146072,4.6909,191.82,191.76,7.3422]
[1761234147373,2.71534615,191.88,191.76,2.65]
[1761234147576,2.71534615,191.85,191.76,2.65]
[1761234147973,2.71534615,191.88,191.76,2.65]
[1761234148277,2.71534615,191.84,191.74,100.00069428]
[1761234148474,4.6921,191.77,191.74,100.00069428]
[1761234149280,4.6917,191.79,191.75,2.86]
[1761234150982,4.6919,191.78,191.75,2.86]
[1761234151181,4.6919,191.78,191.74,100.00069428]
[1761234151881,4.6919,191.78,191.75,2.86]
[1761234152179,4.6922,191.77,191.72,2.86]
[1761234152368,2.71534615,191.81,191.72,2.86]
[1761234152781,2.71534615,191.84,191.72,2.86]
[1761234152977,2.71534615,191.84,191.67,46.9552075]
[1761234152978,18.39534615,191.88,191.74,2.86]
[1761234153484,23.23907553,191.88,191.74,2.86]
[1761234154075,4.6918,191.79,191.74,2.86]
[1761234155773,4.6912,191.81,191.74,2.86]
[1761234156686,4.6907,191.83,191.75,2.86]
[1761234156880,4.6907,191.83,191.77,2.86]
[1761234157583,4.6907,191.83,191.77,7.5519]
[1761234159281,18.39534615,191.87,191.72,4.7352075]
[1761234159475,2.71534615,191.8,191.69,2.86]
[1761234159675,15.68,191.83,191.69,2.86]
[1761234159881,2.71534615,191.8,191.69,2.86]
[1761234160583,4.6929,191.74,191.69,2.86]
[1761234161588,4.6924,191.76,191.69,2.86]
[1761234161882,2.71534615,191.8,191.69,2.86]
[1761234162980,4.6927,191.75,191.69,2.86]
[1761234163884,4.6921,191.77,191.69,2.86]
[1761234164089,44.2,191.84,191.7,2.86]
[1761234164287,2.71534615,191.88,191.76,2.86]
[1761234165084,2.71534615,191.88,191.77,2.86]
[1761234165986,4.6906,191.83,191.75,2.86]
[1761234166477,2.71534615,191.88,191.75,2.86]
[1761234166478,4.691,191.82,191.75,2.86]
[1761234167485,4.6905,191.84,191.75,2.86]
[1761234169087,4.6908,191.83,191.76,2.86]
[1761234172184,7.55907553,191.88,191.73,7.40834615]
[1761234172391,4.84372938,191.87,191.74,2.86]
[1761234172788,4.6911,191.82,191.74,7.5527]
[1761234172993,4.6911,191.82,191.75,2.86]
[1761234174700,4.6913,191.81,191.75,2.86]
[1761234175398,2.71534615,191.85,191.75,2.86]
[1761234175399,4.6907,191.83,191.75,2.86]
[1761234175600,2.71534615,191.85,191.75,2.86]
[1761234176097,4.691,191.82,191.75,2.86]
[1761234178288,4.84372938,191.87,191.76,2.86]
[1761234178492,13.0053015,191.97,191.76,2.86]